fUST/lending_fUST_20240804
["ID","MTS","AMOUNT","RATE_DAILY","PERIOD"]
[334044425,1722703840295,-500.0,0.00013698,2]
[334044426,1722703840304,-1646.15,0.00013698,2]
[334044428,1722703840314,-504.84179154,0.00013698,2]
[334044430,1722703840324,-669.34,0.00013698,2]
[334044431,1722703840333,-500.0,0.00013698,2]
[334044432,1722703840343,-500.0,0.00013698,2]
[334044433,1722703840355,-371.06766861,0.00013698,2]
[334044434,1722703840377,-205.57268217,0.00013698,2]
[334044436,1722703840386,-500.0,0.00013698,2]
[334044438,1722703840395,-500.0,0.00013698,2]
[334044439,1722703840404,-500.0,0.00013698,2]
[334044440,1722703840414,-500.0,0.00013698,2]
[334044441,1722703840425,-500.0,0.00013698,2]
[334044442,1722703840435,-500.0,0.00013698,2]
[334044443,1722703840445,-500.0,0.00013698,2]
[334044444,1722703840459,-162.00744885,0.00013698,2]
[334044445,1722703840469,-500.0,0.00013698,2]
[334044446,1722703840479,-500.0,0.00013698,2]
[334044447,1722703840488,-1217.93,0.00013698,2]
[334044448,1722703840498,-500.0,0.00013698,2]
[334044449,1722703840508,-500.0,0.00013698,2]
[334044450,1722703840518,-453.70891622,0.00013698,2]
[334044451,1722703840528,-500.0,0.00013698,2]
[334044452,1722703840538,-500.0,0.00013698,2]
[334044453,1722703840547,-500.0,0.00013698,2]
[334044454,1722703840557,-500.0,0.00013698,2]
[334044455,1722703840566,-500.0,0.00013698,2]
[334044456,1722703840576,-500.0,0.00013698,2]
[334044457,1722703840585,-500.0,0.00013698,2]
[334044458,1722703840595,-500.0,0.00013698,2]
[334044459,1722703840604,-342.27652,0.00013699,2]
[334044460,1722703840614,-3000.0,0.00013699,2]
[334044461,1722703840624,-194.54850496,0.00013699,2]
[334044462,1722703840634,-15008.31271487,0.00013841,2]
[334044463,1722703840644,-829.57,0.00013861,2]
[334044464,1722703840653,-500.0,0.00013861,2]
[334044465,1722703840662,-500.0,0.00013871,2]
[334044466,1722703840672,-500.0,0.00013871,2]
[334044467,1722703840681,-1466.82157606,0.00013872,2]
[334044468,1722703840691,-12046.891492,0.00013962,2]
[334044469,1722703840702,-829.57,0.00013971,2]
[334044470,1722703840711,-500.0,0.00013971,2]
[334044471,1722703840721,-500.0,0.00013972,2]
[334044472,1722703840731,-500.0,0.00013972,2]
[334044473,1722703840740,-184.73005157,0.00013972,2]
[334044474,1722703840750,-500.0,0.00013972,2]
[334044475,1722703840760,-500.0,0.00013972,2]
[334044476,1722703840770,-500.0,0.00013972,2]
[334044477,1722703840779,-500.0,0.00013972,2]
[334044478,1722703840789,-500.0,0.00013972,2]
[334044479,1722703840798,-500.0,0.00013972,2]
[334044480,1722703840807,-500.0,0.00013972,2]
[334044481,1722703840816,-500.0,0.00013972,2]
[334044482,1722703840826,-500.0,0.00013972,2]
[334044483,1722703840835,-533.75,0.00013972,2]
[334044484,1722703840845,-500.0,0.00013972,2]
[334044485,1722703840854,-1094.45,0.00013972,2]
[334044486,1722703840883,-500.0,0.00013972,2]
[334044487,1722703840893,-500.0,0.00013972,2]
[334044488,1722703840902,-500.0,0.00013972,2]
[334044489,1722703840912,-500.0,0.00013972,2]
[334044490,1722703840921,-500.0,0.00013972,2]
[334044491,1722703840931,-500.0,0.00013972,2]
[334044492,1722703840940,-500.0,0.00013972,2]
[334044493,1722703840949,-361.93460583,0.00013972,2]
[334044494,1722703840959,-500.0,0.00013972,2]
[334044495,1722703840969,-500.0,0.00013972,2]
[334044496,1722703840978,-500.0,0.00013972,2]
[334044497,1722703840987,-500.0,0.00013972,2]
[334044498,1722703840997,-500.0,0.00013972,2]
[334044499,1722703841007,-500.0,0.00013972,2]
[334044500,1722703841016,-500.0,0.00013972,2]
[334044501,1722703841026,-615.48,0.00013972,2]
[334044502,1722703841035,-500.0,0.00013972,2]
[334044503,1722703841044,-506.85140986,0.00013972,2]
[334044504,1722703841055,-500.0,0.00013972,2]
[334044505,1722703841068,-500.0,0.00013972,2]
[334044506,1722703841077,-500.0,0.00013972,2]
[334044507,1722703841086,-500.0,0.00013972,2]
[334044508,1722703841096,-500.0,0.00013972,2]
[334044509,1722703841106,-500.0,0.00013972,2]
[334044510,1722703841115,-500.0,0.00013972,2]
[334044511,1722703841125,-500.0,0.00013972,2]
[334044512,1722703841134,-500.0,0.00013972,2]
[334044513,1722703841143,-500.0,0.00013972,2]
[334044514,1722703841154,-500.0,0.00013972,2]
[334044515,1722703841163,-500.0,0.00013972,2]
[334044516,1722703841173,-500.0,0.00013972,2]
[334044517,1722703841182,-500.0,0.00013972,2]
[334044518,1722703841191,-508.37,0.00013972,2]
[334044519,1722703841201,-500.0,0.00013972,2]
[334044520,1722703841211,-500.0,0.00013972,2]
[334044521,1722703841220,-500.0,0.00013972,2]
[334044522,1722703841230,-500.0,0.00013972,2]
[334044523,1722703841240,-500.0,0.00013972,2]
[334044524,1722703841250,-1950.75,0.00013972,2]
[334044525,1722703841259,-659.99,0.00013972,2]
[334044526,1722703841269,-600.65,0.00013972,2]
[334044527,1722703841278,-500.0,0.00013972,2]
[334044528,1722703841288,-500.0,0.00013972,2]
[334044529,1722703841298,-742.42,0.00013972,2]
[334044530,1722703841307,-500.0,0.00013972,2]
[334044531,1722703841317,-500.0,0.00013972,2]
[334044532,1722703841326,-500.0,0.00013972,2]
[334044533,1722703841336,-500.0,0.00013972,2]
[334044534,1722703841346,-500.0,0.00013972,2]
[334044535,1722703841356,-773.81,0.00013972,2]
[334044536,1722703841384,-430.0,0.00013972,2]
[334044537,1722703841394,-500.0,0.00013972,2]
[334044538,1722703841404,-500.0,0.00013972,2]
[334044539,1722703841414,-500.0,0.00013972,2]
[334044540,1722703841425,-500.0,0.00013972,2]
[334044541,1722703841435,-500.0,0.00013972,2]
[334044542,1722703841445,-500.0,0.00013972,2]
[334044543,1722703841455,-500.0,0.00013972,2]
[334044544,1722703841464,-2292.74,0.00013972,2]
[334044545,1722703841474,-500.0,0.00013972,2]
[334044546,1722703841484,-500.0,0.00013972,2]
[334044547,1722703841494,-500.0,0.00013972,2]
[334044548,1722703841503,-1646.15,0.00013972,2]
[334044549,1722703841513,-669.34,0.00013972,2]
[334044550,1722703841523,-500.0,0.00013972,2]
[334044551,1722703841533,-500.0,0.00013972,2]
[334044552,1722703841543,-500.0,0.00013972,2]
[334044553,1722703841553,-500.0,0.00013972,2]
[334044554,1722703841563,-500.0,0.00013972,2]
[334044555,1722703841573,-500.0,0.00013972,2]
[334044556,1722703841582,-635.5,0.00013972,2]
[334044557,1722703841592,-500.0,0.00013972,2]
[334044558,1722703841602,-500.0,0.00013972,2]
[334044559,1722703841611,-500.0,0.00013972,2]
[334044560,1722703841622,-1217.93,0.00013972,2]
[334044561,1722703841632,-500.0,0.00013972,2]
[334044562,1722703841642,-500.0,0.00013972,2]
[334044563,1722703841652,-500.0,0.00013972,2]
[334044564,1722703841662,-500.0,0.00013972,2]
[334044565,1722703841672,-500.0,0.00013972,2]
[334044566,1722703841682,-500.0,0.00013972,2]
[334044567,1722703841693,-500.0,0.00013972,2]
[334044568,1722703841703,-1000.0,0.00014,2]
[334044569,1722703841712,-12046.891492,0.00014031,2]
[334044570,1722703841723,-282.79964779,0.00014032,2]
[334044571,1722703841733,-1492.75012023,0.00014032,2]
[334044572,1722703841743,-543.03597555,0.00014032,2]
[334044573,1722703841753,-506.44029984,0.00014032,2]
[334044574,1722703841762,-829.57,0.00014039,2]
[334044575,1722703841771,-500.0,0.0001404,2]
[334044576,1722703841781,-30000.0,0.00014041,2]
[334044577,1722703841790,-1466.82157606,0.00014146,2]
[334044578,1722703841799,-829.57,0.00014235,2]
[334044579,1722703841809,-500.0,0.00014235,2]
[334044580,1722703841818,-174.77894029,0.00014235,2]
[334044581,1722703841827,-500.0,0.00014235,2]
[334044582,1722703841838,-500.0,0.00014235,2]
[334044583,1722703841847,-500.0,0.00014235,2]
[334044584,1722703841856,-500.0,0.00014235,2]
[334044585,1722703841883,-500.0,0.00014235,2]
[334044586,1722703841894,-551.354884,0.00014235,2]
[334044587,1722703841903,-353.68108873,0.00014235,2]
[334044588,1722703841913,-500.0,0.00014235,2]
[334044589,1722703841922,-500.0,0.00014235,2]
[334044590,1722703841931,-500.0,0.00014235,2]
[334044591,1722703841941,-500.0,0.00014235,2]
[334044592,1722703841950,-500.0,0.00014235,2]
[334044593,1722703841960,-500.0,0.00014235,2]
[334044594,1722703841969,-500.0,0.00014235,2]
[334044595,1722703841979,-308.23154321,0.00014235,2]
[334044596,1722703841988,-352.89137415,0.00014235,2]
[334044597,1722703841997,-500.0,0.00014235,2]
[334044598,1722703842006,-500.0,0.00014235,2]
[334044599,1722703842016,-500.0,0.00014235,2]
[334044600,1722703842025,-500.0,0.00014235,2]
[334044601,1722703842035,-500.0,0.00014235,2]
[334044602,1722703842044,-500.0,0.00014235,2]
[334044603,1722703842055,-500.0,0.00014235,2]
[334044604,1722703842065,-500.0,0.00014235,2]
[334044605,1722703842076,-12046.891492,0.00014236,2]
[334044606,1722703842086,-829.57,0.00014245,2]
[334044607,1722703842095,-500.0,0.00014245,2]
[334044608,1722703842106,-500.0,0.00014246,2]
[334044609,1722703842196,-500.0,0.00014246,2]
[334044610,1722703842206,-500.0,0.00014246,2]
[334044611,1722703842217,-500.0,0.00014246,2]
[334044612,1722703842227,-500.0,0.00014246,2]
[334044613,1722703842238,-500.0,0.00014246,2]
[334044614,1722703842247,-500.0,0.00014246,2]
[334044615,1722703842259,-500.0,0.00014246,2]
[334044616,1722703842269,-500.0,0.00014246,2]
[334044617,1722703842278,-533.75,0.00014246,2]
[334044618,1722703842287,-500.0,0.00014246,2]
[334044619,1722703842297,-1094.45,0.00014246,2]
[334044620,1722703842306,-500.0,0.00014246,2]
[334044621,1722703842316,-500.0,0.00014246,2]
[334044622,1722703842328,-460.63067369,0.00014246,2]
[334044623,1722703842339,-500.0,0.00014246,2]
[334044624,1722703842349,-500.0,0.00014246,2]
[334044625,1722703842358,-500.0,0.00014246,2]
[334044626,1722703842386,-500.0,0.00014246,2]
[334044627,1722703842397,-500.0,0.00014246,2]
[334044628,1722703842406,-500.0,0.00014246,2]
[334044629,1722703842417,-500.0,0.00014246,2]
[334044630,1722703842429,-500.0,0.00014246,2]
[334044631,1722703842441,-500.0,0.00014246,2]
[334044632,1722703842451,-500.0,0.00014246,2]
[334044633,1722703842463,-500.0,0.00014246,2]
[334044634,1722703842472,-615.48,0.00014246,2]
[334044635,1722703842483,-500.0,0.00014246,2]
[334044636,1722703842495,-500.0,0.00014246,2]
[334044637,1722703842504,-500.0,0.00014246,2]
[334044638,1722703842514,-500.0,0.00014246,2]
[334044639,1722703842523,-500.0,0.00014246,2]
[334044640,1722703842533,-500.0,0.00014246,2]
[334044641,1722703842544,-500.0,0.00014246,2]
[334044642,1722703842553,-500.0,0.00014246,2]
[334044643,1722703842563,-500.0,0.00014246,2]
[334044644,1722703842572,-500.0,0.00014246,2]
[334044645,1722703842582,-500.0,0.00014246,2]
[334044646,1722703842592,-500.0,0.00014246,2]
[334044648,1722703842601,-500.0,0.00014246,2]
[334044649,1722703842611,-508.37,0.00014246,2]
[334044651,1722703842623,-500.0,0.00014246,2]
[334044653,1722703842632,-500.0,0.00014246,2]
[334044656,1722703842648,-500.0,0.00014246,2]
[334044657,1722703842660,-500.0,0.00014246,2]
[334044660,1722703842669,-1950.75,0.00014246,2]
[334044661,1722703842679,-659.99,0.00014246,2]
[334044662,1722703842688,-600.65,0.00014246,2]
[334044663,1722703842697,-500.0,0.00014246,2]
[334044664,1722703842706,-500.0,0.00014246,2]
[334044665,1722703842716,-742.42,0.00014246,2]
[334044668,1722703842726,-504.61701673,0.00014246,2]
[334044670,1722703842736,-500.0,0.00014246,2]
[334044673,1722703842746,-500.0,0.00014246,2]
[334044677,1722703842756,-773.81,0.00014246,2]
[334044680,1722703842765,-500.0,0.00014246,2]
[334044682,1722703842774,-500.0,0.00014246,2]
[334044685,1722703842784,-500.0,0.00014246,2]
[334044686,1722703842794,-500.0,0.00014246,2]
[334044689,1722703842803,-500.0,0.00014246,2]
[334044691,1722703842812,-500.0,0.00014246,2]
[334044695,1722703842822,-2292.74,0.00014246,2]
[334044698,1722703842831,-500.0,0.00014246,2]
[334044700,1722703842841,-500.0,0.00014246,2]
[334044703,1722703842850,-1646.15,0.00014246,2]
[334044704,1722703842859,-669.34,0.00014246,2]
[334044705,1722703842888,-500.0,0.00014246,2]
[334044707,1722703842898,-500.0,0.00014246,2]
[334044709,1722703842908,-500.0,0.00014246,2]
[334044711,1722703842918,-500.0,0.00014246,2]
[334044713,1722703842928,-500.0,0.00014246,2]
[334044714,1722703842938,-500.0,0.00014246,2]
[334044716,1722703842948,-500.0,0.00014246,2]
[334044718,1722703842958,-1217.93,0.00014246,2]
[334044720,1722703842969,-500.0,0.00014246,2]
[334044722,1722703842979,-500.0,0.00014246,2]
[334044724,1722703842989,-500.0,0.00014246,2]
[334044726,1722703842999,-500.0,0.00014246,2]
[334044728,1722703843009,-500.0,0.00014246,2]
[334044729,1722703843019,-500.0,0.00014246,2]
[334044731,1722703843029,-678.75,0.00014247,2]
[334044733,1722703843039,-639.797905,0.00014247,2]
[334044735,1722703843049,-24093.782984,0.0001441,2]
[334044737,1722703843063,-829.57,0.00014419,2]
[334044739,1722703843073,-829.57,0.00014419,2]
[334044741,1722703843083,-88888.0,0.0001442,2]
[334044743,1722703843093,-1466.82157606,0.0001442,2]
[334044745,1722703843103,-12046.891492,0.0001451,2]
[334044746,1722703843113,-829.57,0.00014519,2]
[334044748,1722703843123,-500.0,0.00014519,2]
[334044750,1722703843136,-3157.19387874,0.0001452,5]
[334044751,1722703843146,-500.0,0.0001452,2]
[334044753,1722703843156,-500.0,0.0001452,2]
[334044754,1722703843166,-500.0,0.0001452,2]
[334044756,1722703843176,-500.0,0.0001452,2]
[334044757,1722703843187,-500.0,0.0001452,2]
[334044758,1722703843197,-500.0,0.0001452,2]
[334044760,1722703843207,-500.0,0.0001452,2]
[334044762,1722703843216,-500.0,0.0001452,2]
[334044764,1722703843227,-533.75,0.0001452,2]
[334044766,1722703843237,-1094.45,0.0001452,2]
[334044768,1722703843246,-500.0,0.0001452,2]
[334044769,1722703843256,-500.0,0.0001452,2]
[334044770,1722703843266,-500.0,0.0001452,2]
[334044771,1722703843276,-500.0,0.0001452,2]
[334044772,1722703843286,-500.0,0.0001452,2]
[334044773,1722703843295,-500.0,0.0001452,2]
[334044774,1722703843306,-500.0,0.0001452,2]
[334044775,1722703843315,-500.0,0.0001452,2]
[334044776,1722703843325,-500.0,0.0001452,2]
[334044777,1722703843335,-500.0,0.0001452,2]
[334044778,1722703843344,-500.0,0.0001452,2]
[334044779,1722703843354,-500.0,0.0001452,2]
[334044780,1722703843364,-500.0,0.0001452,2]
[334044781,1722703843377,-615.48,0.0001452,2]
[334044782,1722703843399,-500.0,0.0001452,2]
[334044783,1722703843408,-500.0,0.0001452,2]
[334044784,1722703843417,-500.0,0.0001452,2]
[334044785,1722703843427,-500.0,0.0001452,2]
[334044786,1722703843437,-500.0,0.0001452,2]
[334044787,1722703843447,-500.0,0.0001452,2]
[334044788,1722703843457,-500.0,0.0001452,2]
[334044789,1722703843467,-500.0,0.0001452,2]
[334044790,1722703843476,-500.0,0.0001452,2]
[334044791,1722703843486,-500.0,0.0001452,2]
[334044792,1722703843496,-500.0,0.0001452,2]
[334044793,1722703843505,-500.0,0.0001452,2]
[334044794,1722703843515,-508.37,0.0001452,2]
[334044795,1722703843525,-500.0,0.0001452,2]
[334044796,1722703843534,-500.0,0.0001452,2]
[334044797,1722703843544,-500.0,0.0001452,2]
[334044798,1722703843555,-1950.75,0.0001452,2]
[334044799,1722703843565,-659.99,0.0001452,2]
[334044800,1722703843574,-600.65,0.0001452,2]
[334044801,1722703843584,-500.0,0.0001452,2]
[334044802,1722703843594,-742.42,0.0001452,2]
[334044803,1722703843603,-174.34874103,0.0001452,2]
[334044804,1722703843708,-325.65125897,0.0001452,2]
[334044805,1722703843718,-500.0,0.0001452,2]
[334044806,1722703843729,-773.81,0.0001452,2]
[334044807,1722703843739,-500.0,0.0001452,2]
[334044808,1722703843748,-500.0,0.0001452,2]
[334044809,1722703843758,-500.0,0.0001452,2]
[334044810,1722703843768,-500.0,0.0001452,2]
[334044811,1722703843777,-500.0,0.0001452,2]
[334044812,1722703843787,-500.0,0.0001452,2]
[334044813,1722703843797,-2292.74,0.0001452,2]
[334044814,1722703843806,-500.0,0.0001452,2]
[334044815,1722703843816,-500.0,0.0001452,2]
[334044816,1722703843825,-1646.15,0.0001452,2]
[334044817,1722703843835,-669.34,0.0001452,2]
[334044818,1722703843844,-500.0,0.0001452,2]
[334044819,1722703843854,-500.0,0.0001452,2]
[334044820,1722703843864,-500.0,0.0001452,2]
[334044821,1722703843874,-158.86045351,0.0001452,2]
[334044825,1722703844031,-694.06857466,9.999e-05,2]
[334044826,1722703844041,-500.0,0.00013698,2]
[334044827,1722703844051,-500.0,0.00013972,2]
[334044828,1722703844061,-500.0,0.00014246,2]
[334044829,1722703844075,-500.0,0.00014246,2]
[334044830,1722703844085,-341.13954649,0.0001452,2]
[334044831,1722703844094,-500.0,0.0001452,2]
[334044832,1722703844104,-500.0,0.0001452,2]
[334044833,1722703844115,-1217.93,0.0001452,2]
[334044834,1722703844124,-500.0,0.0001452,2]
[334044835,1722703844134,-500.0,0.0001452,2]
[334044836,1722703844144,-500.0,0.0001452,2]
[334044837,1722703844154,-500.0,0.0001452,2]
[334044838,1722703844164,-500.0,0.0001452,2]
[334044839,1722703844173,-586.63,0.0001452,2]
[334044840,1722703844182,-500.0,0.0001452,2]
[334044841,1722703844192,-1629.94778794,0.00014684,2]
[334044842,1722703844289,-1466.82157606,0.00014694,2]
[334044843,1722703844299,-1872.9038283,0.00014694,2]
[334044844,1722703844309,-12046.891492,0.00014784,2]
[334044845,1722703844319,-829.57,0.00014793,2]
[334044846,1722703844329,-214.41777576,0.00014793,2]
[334044847,1722703844338,-500.0,0.00014793,2]
[334044848,1722703844348,-500.0,0.00014793,2]
[334044849,1722703844357,-204.81771448,0.00014793,2]
[334044850,1722703844366,-500.0,0.00014793,2]
[334044851,1722703844376,-500.0,0.00014793,2]
[334044852,1722703844393,-314.7535487,0.00014793,2]
[334044853,1722703844411,-500.0,0.00014793,2]
[334044854,1722703844421,-500.0,0.00014793,2]
[334044855,1722703844430,-500.0,0.00014793,2]
[334044856,1722703844440,-500.0,0.00014793,2]
[334044857,1722703844449,-273.19372739,0.00014793,2]
[334044858,1722703844459,-500.0,0.00014793,2]
[334044859,1722703844468,-500.0,0.00014793,2]
[334044860,1722703844477,-500.0,0.00014793,2]
[334044861,1722703844486,-500.0,0.00014793,2]
[334044862,1722703844496,-500.0,0.00014793,2]
[334044863,1722703844505,-650.0,0.00014793,2]
[334044864,1722703844515,-500.0,0.00014793,2]
[334044865,1722703844524,-500.0,0.00014793,2]
[334044866,1722703844534,-500.0,0.00014794,2]
[334044867,1722703844544,-500.0,0.00014794,2]
[334044868,1722703844553,-500.0,0.00014794,2]
[334044869,1722703844564,-500.0,0.00014794,2]
[334044870,1722703844574,-500.0,0.00014794,2]
[334044871,1722703844583,-500.0,0.00014794,2]
[334044872,1722703844593,-500.0,0.00014794,2]
[334044873,1722703844602,-614.51369104,0.00014794,2]
[334044874,1722703844611,-533.75,0.00014794,2]
[334044875,1722703844621,-1094.45,0.00014794,2]
[334044876,1722703844630,-500.0,0.00014794,2]
[334044877,1722703844640,-500.0,0.00014794,2]
[334044878,1722703844650,-500.0,0.00014794,2]
[334044879,1722703844659,-500.0,0.00014794,2]
[334044880,1722703844668,-500.0,0.00014794,2]
[334044881,1722703844678,-500.0,0.00014794,2]
[334044882,1722703844687,-500.0,0.00014794,2]
[334044883,1722703844697,-500.0,0.00014794,2]
[334044884,1722703844707,-500.0,0.00014794,2]
[334044885,1722703844716,-500.0,0.00014794,2]
[334044886,1722703844726,-500.0,0.00014794,2]
[334044887,1722703844736,-519.43917395,0.00014794,2]
[334044888,1722703844745,-500.0,0.00014794,2]
[334044889,1722703844754,-615.48,0.00014794,2]
[334044890,1722703844764,-500.0,0.00014794,2]
[334044891,1722703844773,-500.0,0.00014794,2]
[334044892,1722703844782,-500.0,0.00014794,2]
[334044893,1722703844792,-500.0,0.00014794,2]
[334044894,1722703844801,-500.0,0.00014794,2]
[334044895,1722703844810,-500.0,0.00014794,2]
[334044896,1722703844820,-500.0,0.00014794,2]
[334044897,1722703844829,-500.0,0.00014794,2]
[334044898,1722703844838,-500.0,0.00014794,2]
[334044899,1722703844847,-500.0,0.00014794,2]
[334044900,1722703844857,-508.37,0.00014794,2]
[334044901,1722703844866,-500.0,0.00014794,2]
[334044902,1722703844875,-500.0,0.00014794,2]
[334044903,1722703844884,-500.0,0.00014794,2]
[334044904,1722703844907,-1950.75,0.00014794,2]
[334044905,1722703844918,-659.99,0.00014794,2]
[334044906,1722703844929,-600.65,0.00014794,2]
[334044907,1722703844942,-742.42,0.00014794,2]
[334044908,1722703844953,-500.0,0.00014794,2]
[334044909,1722703844963,-773.81,0.00014794,2]
[334044910,1722703844974,-500.0,0.00014794,2]
[334044911,1722703844984,-500.0,0.00014794,2]
[334044912,1722703844993,-500.0,0.00014794,2]
[334044913,1722703845003,-500.0,0.00014794,2]
[334044914,1722703845013,-500.0,0.00014794,2]
[334044915,1722703845023,-500.0,0.00014794,2]
[334044916,1722703845035,-2292.74,0.00014794,2]
[334044917,1722703845045,-500.0,0.00014794,2]
[334044918,1722703845056,-1646.15,0.00014794,2]
[334044919,1722703845069,-669.34,0.00014794,2]
[334044920,1722703845079,-500.0,0.00014794,2]
[334044921,1722703845088,-500.0,0.00014794,2]
[334044922,1722703845098,-500.0,0.00014794,2]
[334044923,1722703845107,-500.0,0.00014794,2]
[334044924,1722703845117,-500.0,0.00014794,2]
[334044925,1722703845126,-1217.93,0.00014794,2]
[334044926,1722703845136,-500.0,0.00014794,2]
[334044927,1722703845147,-500.0,0.00014794,2]
[334044928,1722703845157,-500.0,0.00014794,2]
[334044929,1722703845167,-500.0,0.00014794,2]
[334044930,1722703845177,-500.0,0.00014794,2]
[334044931,1722703845186,-154.79277577,0.00015,2]
[334044932,1722703845196,-154.77557542,0.00015,2]
[334044933,1722703845205,-951.65187642,0.00015,2]
[334044934,1722703845215,-1108.72341291,0.00015,2]
[334044935,1722703845225,-2000.0,0.00015,2]
[334044936,1722703845235,-302.51602579,0.00015,2]
[334044937,1722703845245,-302.51602579,0.00015,2]
[334044938,1722703845255,-500.0,0.00015057,2]
[334044939,1722703845264,-12046.891492,0.00015058,2]
[334044940,1722703845274,-829.57,0.00015067,2]
[334044941,1722703845284,-500.0,0.00015068,2]
[334044942,1722703845294,-500.0,0.00015068,2]
[334044943,1722703845303,-500.0,0.00015068,2]
[334044944,1722703845312,-500.0,0.00015068,2]
[334044945,1722703845322,-500.0,0.00015068,2]
[334044946,1722703845331,-500.0,0.00015068,2]
[334044947,1722703845340,-500.0,0.00015068,2]
[334044948,1722703845349,-533.75,0.00015068,2]
[334044949,1722703845359,-1094.45,0.00015068,2]
[334044950,1722703845368,-500.0,0.00015068,2]
[334044951,1722703845378,-500.0,0.00015068,2]
[334044952,1722703845388,-500.0,0.00015068,2]
[334044953,1722703845414,-500.0,0.00015068,2]
[334044954,1722703845424,-500.0,0.00015068,2]
[334044955,1722703845433,-500.0,0.00015068,2]
[334044956,1722703845443,-500.0,0.00015068,2]
[334044957,1722703845454,-500.0,0.00015068,2]
[334044958,1722703845463,-500.0,0.00015068,2]
[334044959,1722703845472,-500.0,0.00015068,2]
[334044960,1722703845482,-500.0,0.00015068,2]
[334044961,1722703845495,-615.48,0.00015068,2]
[334044962,1722703845504,-500.0,0.00015068,2]
[334044963,1722703845514,-500.0,0.00015068,2]
[334044964,1722703845523,-500.0,0.00015068,2]
[334044965,1722703845532,-500.0,0.00015068,2]
[334044966,1722703845542,-500.0,0.00015068,2]
[334044967,1722703845552,-500.0,0.00015068,2]
[334044968,1722703845562,-500.0,0.00015068,2]
[334044969,1722703845572,-500.0,0.00015068,2]
[334044970,1722703845582,-500.0,0.00015068,2]
[334044971,1722703845592,-508.37,0.00015068,2]
[334044972,1722703845602,-500.0,0.00015068,2]
[334044974,1722703845611,-500.0,0.00015068,2]
[334044976,1722703845620,-500.0,0.00015068,2]
[334044978,1722703845630,-1950.75,0.00015068,2]
[334044980,1722703845640,-659.99,0.00015068,2]
[334044982,1722703845650,-600.65,0.00015068,2]
[334044984,1722703845659,-742.42,0.00015068,2]
[334044986,1722703845669,-500.0,0.00015068,2]
[334044987,1722703845679,-773.81,0.00015068,2]
[334044988,1722703845689,-500.0,0.00015068,2]
[334044989,1722703845699,-297.14762586,0.00015068,2]
[334044990,1722703845708,-500.0,0.00015068,2]
[334044991,1722703845717,-500.0,0.00015068,2]
[334044993,1722703845728,-500.0,0.00015068,2]
[334044994,1722703845737,-500.0,0.00015068,2]
[334044995,1722703845746,-2292.74,0.00015068,2]
[334044996,1722703845756,-500.0,0.00015068,2]
[334044997,1722703845766,-1646.15,0.00015068,2]
[334044998,1722703845776,-669.34,0.00015068,2]